bitfinex-derivatives/quotes_ETHF0:USTF0_20241022
["timestamp","ask_amount","ask_price","bid_price","bid_amount"]
[1729617063144,4.36633,2619.1,2618.8,0.38205]
[1729617064043,2.6441,2619.1,2619.0,3.37203]
[1729617064241,3.2078,2619.2,2619.0,2.99]
[1729617064439,3.2078,2619.2,2619.1,4.74782]
[1729617068349,3.2078,2619.2,2619.1,4.65802]
[1729617069145,0.38204,2619.0,2618.7,4.276]
[1729617069347,2.7913,2619.1,2618.9,3.37203]
[1729617069841,2.7913,2619.1,2618.9,2.99]
[1729617069842,3.17332,2619.1,2618.9,2.99]
[1729617070043,0.38203,2619.0,2618.9,2.99]
[1729617070746,2.7913,2619.1,2618.8,2.99]
[1729617070941,3.2078,2618.9,2618.4,1.286]
[1729617071145,0.3821,2618.6,2618.4,1.286]
[1729617071447,0.3821,2618.6,2618.4,1.66812]
[1729617071448,2.7166,2618.5,2618.4,1.66812]
[1729617071647,2.7166,2618.5,2618.4,1.286]
[1729617071954,3.0987,2618.5,2618.4,1.286]
[1729617072250,2.7166,2618.5,2618.4,1.66812]
[1729617072449,2.7166,2618.5,2618.4,1.286]
[1729617072845,3.0987,2618.5,2618.4,1.286]
[1729617073043,2.7166,2618.5,2618.4,1.286]
[1729617073441,2.7166,2618.5,2618.3,1.66812]
[1729617074443,2.7166,2618.5,2618.3,1.66813]
[1729617074642,2.7166,2618.5,2618.3,0.38213]
[1729617074849,2.7166,2618.5,2618.3,1.66813]
[1729617075444,0.38212,2618.4,2618.3,1.286]
[1729617075746,2.7166,2618.5,2618.3,1.286]
[1729617075747,3.09871,2618.5,2618.3,1.286]
[1729617075948,0.38212,2618.4,2618.3,1.286]
[1729617076544,3.09871,2618.5,2618.3,1.66813]
[1729617076740,2.7166,2618.5,2618.3,1.286]
[1729617077144,3.09871,2618.5,2618.3,1.286]
[1729617077747,3.09871,2618.5,2618.3,1.66813]
[1729617077946,3.09871,2618.5,2618.3,1.286]
[1729617079951,3.09871,2618.5,2618.3,1.66813]
[1729617080146,2.7166,2618.5,2618.3,1.68313]
[1729617080342,0.38209,2618.7,2618.4,0.38212]
[1729617080546,4.16293,2618.9,2618.4,0.38212]
[1729617080547,0.38209,2618.6,2618.4,0.38212]
[1729617081151,0.9552,2618.7,2618.3,1.301]
[1729617081453,3.2078,2618.6,2618.3,1.301]
[1729617081657,0.38212,2618.4,2618.3,1.301]
[1729617083847,0.9552,2618.7,2618.3,1.301]
[1729617084052,0.38211,2618.5,2618.3,1.301]
[1729617084461,0.38212,2618.4,2618.3,1.301]
[1729617085151,0.38212,2618.4,2618.2,1.74395]
[1729617085349,0.38212,2618.4,2618.3,1.301]
[1729617086153,0.38211,2618.5,2618.3,1.68313]
[1729617086355,0.9552,2618.7,2618.3,1.301]
[1729617086651,0.38212,2618.4,2618.3,1.301]
[1729617087053,5.7416,2618.8,2617.9,2.7981]
[1729617087258,5.7416,2618.8,2617.8,3.2078]
[1729617087259,2.24534,2618.3,2617.8,2.7125]
[1729617087450,1.3109,2618.2,2617.9,0.38219]
[1729617087646,1.3109,2618.2,2617.8,5.7025]
[1729617087854,1.69306,2618.2,2617.8,5.7025]
[1729617088261,1.69306,2618.2,2617.9,0.38218]
[1729617088262,0.38217,2618.1,2617.9,0.38218]
[1729617089157,0.38217,2618.1,2617.8,6.0847]
[1729617089359,0.38218,2618.0,2617.8,6.0847]
[1729617089657,0.38218,2618.0,2617.8,3.0947]
[1729617090055,0.38218,2618.0,2617.9,1.301]
[1729617091057,0.38218,2618.0,2617.8,1.7937]
[1729617091270,0.38219,2618.0,2617.8,2.7125]
[1729617091654,1.3109,2618.2,2617.8,2.7125]
[1729617091858,1.3109,2618.2,2617.8,3.09469]
[1729617092063,0.38218,2618.0,2617.8,3.09469]
[1729617092958,0.38219,2617.9,2617.8,1.4115]
[1729617093155,4.5187,2618.2,2617.8,2.7125]
[1729617093351,0.38223,2617.7,2617.5,2.7249]
[1729617093660,7.5087,2618.2,2617.5,2.6869]
[1729617093661,6.1978,2617.9,2617.5,2.6869]
[1729617093963,0.38222,2617.7,2617.5,3.06914]
[1729617094151,1.3417,2617.8,2617.6,0.38223]
[1729617094353,5.4741,2618.2,2617.7,2.99]
[1729617094354,4.5187,2618.2,2617.7,2.99]
[1729617094561,4.5187,2618.2,2617.8,1.6862]
[1729617094765,4.5187,2618.2,2617.9,0.38219]
[1729617094766,0.38217,2618.1,2617.9,0.38219]
[1729617095064,0.38217,2618.1,2618.0,1.3271]
[1729617095861,0.38217,2618.1,2618.0,2.7093]
[1729617097361,0.38217,2618.1,2618.0,3.09148]
[1729617097759,4.5187,2618.2,2618.0,2.7093]
[1729617097960,4.90085,2618.2,2618.1,0.38216]
[1729617098160,4.5187,2618.2,2618.1,0.38216]
[1729617099861,3.2078,2618.2,2618.1,0.38216]
[1729617102263,1.72382,2618.4,2618.1,0.38216]
[1729617102569,0.38213,2618.3,2618.1,0.38216]
[1729617103265,4.5495,2618.4,2618.0,4.0743]
[1729617103463,3.58992,2618.4,2618.2,0.38214]
[1729617105471,3.2078,2618.4,2618.3,0.38213]
[1729617105666,1.3132,2618.7,2618.4,0.38211]
[1729617105879,1.69528,2618.7,2618.5,1.7507]
[1729617106168,0.38209,2618.6,2618.5,1.3686]
[1729617107559,0.38209,2618.6,2618.5,1.7507]
[1729617108966,0.38209,2618.6,2618.5,1.3686]
[1729617109175,1.3132,2618.7,2618.4,0.38211]
[1729617109371,0.3821,2618.5,2618.4,0.38211]
[1729617109569,1.3132,2618.7,2618.3,1.3865]
[1729617109766,0.38211,2618.5,2618.4,0.38211]
[1729617109969,1.3132,2618.7,2618.3,1.3865]
[1729617110273,0.38211,2618.5,2618.4,0.38211]
[1729617112476,0.38211,2618.5,2618.3,1.3865]
[1729617112675,0.38212,2618.4,2618.3,1.76862]
[1729617112875,2.2684,2618.7,2618.3,1.76862]
[1729617113077,0.38212,2618.5,2618.3,1.76862]
[1729617113275,0.38211,2618.5,2618.3,1.76862]
[1729617113483,1.3132,2618.7,2618.3,1.3865]
[1729617113770,1.3132,2618.7,2618.0,1.70992694]
[1729617113771,0.38217,2618.1,2618.0,1.74717]
[1729617113975,0.38218,2618.0,2617.9,1.365]
[1729617114174,1.72008,2618.0,2617.9,1.365]
[1729617118368,1.72008,2618.0,2617.6,1.76992]
[1729617118369,0.3822,2617.9,2617.6,1.76992]
[1729617118678,1.3217,2617.9,2617.7,1.295]
[1729617118888,0.38221,2617.8,2617.7,1.295]
[1729617119579,1.3217,2617.9,2617.5,2.99]
[1729617119787,3.2078,2617.8,2617.3,10.9787]
[1729617119978,0.38226,2617.5,2617.3,12.3447]
[1729617120175,0.38226,2617.5,2617.3,12.72697]
[1729617120374,5.58193,2617.8,2617.3,12.72697]
[1729617120375,0.38224,2617.6,2617.3,12.72697]
[1729617120574,4.6264,2617.8,2617.3,12.72697]
[1729617120776,0.38225,2617.5,2617.3,12.3447]
[1729617120980,0.38226,2617.4,2617.3,12.3447]
[1729617121281,0.38226,2617.4,2617.3,9.557]
[1729617121476,0.95556,2617.7,2617.2,1.366]
[1729617121477,3.2078,2617.5,2617.2,1.366]
[1729617121680,1.80328,2617.3,2617.2,1.366]
[1729617122687,1.80328,2617.3,2617.2,5.1868]
[1729617123188,1.421,2617.3,2617.2,5.1868]
[1729617123389,1.80328,2617.3,2617.2,5.1868]
[1729617124184,1.80328,2617.3,2617.2,1.366]
[1729617124580,1.421,2617.3,2617.1,1.366]
[1729617124780,1.421,2617.3,2616.8,1.3545]
[1729617124975,0.38233,2617.0,2616.8,1.3545]
[1729617125175,1.3535,2616.9,2616.8,1.73685]
[1729617125379,1.3535,2616.9,2616.6,2.7995]
[1729617125582,0.38236,2616.8,2616.6,3.18188]
[1729617125785,0.38236,2616.8,2616.6,2.7995]
[1729617126081,0.38239,2616.6,2616.4,1.369]
[1729617126288,1.3728,2616.5,2616.4,1.75141]
[1729617126476,0.38235,2616.8,2616.5,0.38238]
[1729617126787,1.3728,2616.8,2616.6,0.38237]
[1729617127082,1.3728,2616.8,2616.7,1.3201]
[1729617127282,1.452,2616.9,2616.7,1.70246]
[1729617127476,3.2078,2617.1,2616.7,1.3201]
[1729617127783,0.38231,2617.1,2616.8,0.38234]
[1729617127982,1.3728,2617.2,2616.9,2.99]
[1729617128287,1.3728,2617.2,2617.1,0.38231]
[1729617128678,1.3728,2617.2,2617.0,1.3308]
[1729617129278,1.3728,2617.2,2617.1,0.38231]
[1729617130185,4.95566,2617.5,2617.2,0.38229]
[1729617130380,1.80977,2617.4,2617.1,0.3823]
[1729617131778,1.80977,2617.4,2617.2,1.4262]
[1729617132478,0.38228,2617.3,2617.2,1.4262]
[1729617134281,0.9558,2617.1,2616.1,1.367]
[1729617134476,0.38238,2616.7,2616.4,0.38241]
[1729617134780,1.3391,2616.6,2616.4,0.38241]
[1729617134977,1.3391,2616.6,2616.3,1.4384]
[1729617136086,0.3824,2616.5,2616.3,1.4384]
[1729617136283,1.72149,2616.6,2616.3,3.18782]
[1729617136780,1.72149,2616.6,2615.7,3.2078]
[1729617136781,2.99,2616.4,2615.7,3.2078]
[1729617136985,0.3825,2615.8,2615.7,3.2078]
[1729617137187,3.94611,2616.2,2615.7,3.2078]
[1729617137489,1.3246,2616.1,2615.7,3.2078]
[1729617137690,0.3825,2615.8,2615.7,3.2078]
[1729617138193,0.38249,2615.9,2615.7,7.031]
[1729617138483,0.38249,2615.9,2615.7,3.2078]
[1729617138687,0.3825,2615.8,2615.7,3.2078]
[1729617140995,0.38254,2615.5,2615.4,3.2078]
[1729617141488,0.38254,2615.5,2615.2,4.1169]
[1729617141489,0.38254,2615.5,2615.2,4.49948]
[1729617141685,0.38257,2615.3,2615.2,1.3937]
[1729617141894,2.99,2615.5,2615.1,4.5748]
[1729617142686,0.38258,2615.3,2615.1,3.2078]
[1729617143084,2.99,2615.5,2615.1,3.2078]
[1729617143387,0.38258,2615.3,2615.1,3.2078]
[1729617143690,0.38259,2615.2,2615.1,3.2078]
[1729617146895,2.99,2615.3,2614.7,7.4874]
[1729617147100,0.38264,2614.9,2614.7,4.666]
[1729617147295,0.38264,2614.9,2614.7,1.4582]
[1729617147790,2.99,2615.0,2614.7,1.4582]
[1729617147991,0.38264,2614.9,2614.7,1.4582]
[1729617149294,2.99,2615.0,2614.7,1.4582]
[1729617149495,0.38264,2614.9,2614.7,1.4582]
[1729617150397,2.99,2615.0,2614.7,1.4582]
[1729617150593,5.9998,2615.1,2614.7,1.4582]
[1729617151299,0.38262,2615.0,2614.7,1.84085]
[1729617151494,5.00471,2615.1,2614.8,0.38264]
[1729617151698,0.38262,2615.0,2614.8,0.38264]
[1729617152290,5.00471,2615.1,2614.8,0.38264]
[1729617152696,4.6221,2615.1,2614.8,0.38264]
[1729617152907,5.00471,2615.1,2614.8,0.38264]
[1729617153499,5.00471,2615.1,2614.7,1.4582]
[1729617153500,4.6221,2615.1,2614.7,1.4582]
[1729617153893,4.6221,2615.1,2615.0,0.38261]
[1729617154088,4.6221,2615.1,2614.7,1.4582]
[1729617154302,5.00471,2615.1,2614.7,1.4582]
[1729617154605,4.6221,2615.1,2615.0,0.38261]
[1729617155496,3.2078,2615.1,2615.0,0.38261]
[1729617155702,2.63345703,2615.1,2615.0,0.38261]
[1729617156099,2.63345703,2615.1,2615.0,4.20661]
[1729617158100,3.12476,2615.4,2615.0,3.824]
[1729617158299,3.12476,2615.4,2614.9,1.3597]
[1729617158598,3.12476,2615.4,2615.2,0.38258]
[1729617159199,3.12476,2615.4,2614.9,1.3597]
[1729617159401,0.38257,2615.3,2614.9,1.3597]
[1729617159696,6.11477,2615.4,2615.1,0.38259]
[1729617160300,6.11477,2615.4,2615.2,0.38258]
[1729617162100,5.7322,2615.4,2615.3,0.38257]
[1729617162303,3.12476,2615.4,2615.3,0.38257]
[1729617162602,2.7422,2615.4,2615.3,0.38257]
[1729617163198,3.2078,2615.6,2615.5,0.38254]
[1729617163398,3.2078,2615.6,2615.1,0.95651]
[1729617163609,3.59033,2615.6,2615.2,2.7124]
[1729617163801,0.38255,2615.5,2615.3,0.38257]
[1729617164003,1.4204,2615.5,2615.3,0.38256]
[1729617164201,0.38257,2615.3,2615.2,0.38258]
[1729617164405,0.38257,2615.3,2614.9,1.3597]
[1729617164406,0.38261,2615.1,2615.0,0.38261]
[1729617164603,0.3826,2615.2,2615.0,0.38261]
[1729617164802,0.3826,2615.1,2615.0,0.38261]
[1729617165201,0.38262,2615.0,2614.6,2.7823]
[1729617165396,0.38262,2615.0,2614.7,0.38266]
[1729617165397,1.335,2615.0,2614.7,0.38266]
[1729617165604,1.73623,2614.9,2614.7,0.38266]
[1729617166808,1.3536,2614.9,2614.8,0.38264]
[1729617167015,1.3536,2614.9,2614.7,0.38266]
[1729617168005,1.73623,2614.9,2614.7,0.38265]
[1729617168515,1.73624,2614.9,2614.7,0.38265]
[1729617171411,1.73624,2614.9,2614.8,0.38264]
[1729617171612,1.73624,2614.9,2614.6,1.4059]
[1729617171817,1.73624,2614.9,2614.7,0.38266]
[1729617172020,1.73624,2614.9,2614.7,0.38265]
[1729617173527,0.38264,2614.8,2614.7,0.38265]
[1729617173725,1.3536,2614.9,2614.7,0.38265]
[1729617173726,1.73624,2614.9,2614.7,0.38265]
[1729617174323,1.73624,2614.9,2614.6,1.4059]
[1729617174829,1.73624,2614.9,2614.8,0.38264]
[1729617175125,1.73624,2614.9,2614.7,0.38265]
[1729617175720,1.73624,2614.9,2614.6,1.4059]
[1729617175922,1.73624,2614.9,2614.8,0.38264]
[1729617176518,1.73624,2614.9,2614.6,1.4059]
[1729617176731,1.3536,2614.9,2614.5,1.377]
[1729617177126,0.38266,2614.7,2614.6,0.38267]
[1729617177824,0.38265,2614.8,2614.6,0.38267]
[1729617178030,1.3536,2614.9,2614.5,1.377]
[1729617178324,3.2078,2614.8,2614.5,0.38268]
[1729617178521,0.38267,2614.7,2614.5,0.38268]
[1729617178722,0.38267,2614.7,2614.4,2.8085]
[1729617178918,1.3312,2614.6,2614.5,0.38269]
[1729617179228,4.5614,2614.9,2614.7,0.38265]
[1729617179532,0.38267,2614.7,2614.5,0.38268]
[1729617179931,0.38267,2614.7,2614.6,0.38267]
[1729617180125,1.3312,2614.8,2614.6,0.38267]
[1729617180535,0.38266,2614.7,2614.6,0.38267]
[1729617180933,1.71385,2614.8,2614.6,0.38267]
[1729617181133,1.3312,2614.8,2614.7,0.38266]
[1729617181733,1.71385,2614.8,2614.5,0.38269]
[1729617181928,1.3312,2614.8,2614.7,0.38266]
[1729617182139,3.2078,2614.9,2614.5,0.95672]
[1729617182330,3.2078,2614.9,2614.8,0.38264]
[1729617183442,0.38264,2614.8,2614.7,0.38265]
[1729617183628,1.82864,2614.8,2614.7,0.38265]
[1729617184028,1.446,2614.8,2614.7,0.38265]
[1729617184230,1.82864,2614.8,2614.7,0.38265]
[1729617184631,1.82864,2614.8,2614.6,0.38266]
[1729617184928,1.82865,2614.8,2614.6,0.38266]
[1729617185241,1.446,2614.8,2614.7,0.38266]
[1729617186539,1.82865,2614.8,2614.6,0.38267]
[1729617186838,1.446,2614.8,2614.7,0.38266]
[1729617188637,3.2078,2614.9,2614.5,0.95672]
[1729617188839,3.2078,2614.9,2614.8,0.38264]
[1729617189337,0.38262,2615.0,2614.8,0.38264]
[1729617190437,4.429,2615.1,2614.7,1.3416]
[1729617190438,1.439,2615.1,2614.7,1.3416]
[1729617190641,0.38261,2615.0,2614.8,0.38264]
[1729617190846,1.439,2615.1,2614.7,1.3416]
[1729617191038,0.38262,2615.0,2614.8,0.38263]
[1729617191234,1.439,2615.1,2614.7,1.3416]
[1729617191433,3.2078,2615.5,2615.0,0.38261]
[1729617191647,1.3558,2615.4,2615.1,1.3922]
[1729617191944,0.38259,2615.2,2615.1,1.77479]
[1729617192145,1.3558,2615.4,2615.2,0.38258]
[1729617192339,0.38257,2615.3,2615.2,0.38258]
[1729617193445,1.3558,2615.4,2615.1,1.3922]
[1729617193646,1.73836,2615.4,2615.3,0.38257]
[1729617194234,0.38259,2615.2,2615.1,1.3922]
[1729617194434,0.38259,2615.2,2614.5,0.99563819]
[1729617194435,0.38267,2614.7,2614.6,0.38267]
[1729617194739,3.37267,2614.7,2614.6,0.38267]
[1729617195840,3.37267,2614.7,2614.5,1.72168]
[1729617196137,3.37267,2614.7,2614.5,0.38268]
[1729617196539,0.38267,2614.6,2614.5,0.38268]
[1729617197041,3.37267,2614.7,2614.3,1.339]
[1729617197242,3.37267,2614.7,2614.5,0.38268]
[1729617198345,1.4168,2614.6,2614.5,0.38268]
[1729617199153,7.97404,2614.9,2614.4,1.33946]
[1729617199455,7.97404,2614.9,2614.7,0.38266]
[1729617200148,0.38265,2614.8,2614.6,0.38267]
[1729617200355,7.97404,2614.9,2614.7,0.38265]
[1729617201042,4.98404,2614.9,2614.8,0.38264]
[1729617201338,7.97404,2614.9,2614.8,0.38264]
[1729617201548,7.97404,2614.9,2614.7,0.38265]
[1729617201744,7.97404,2614.9,2614.4,0.95676]
[1729617201940,7.5914,2614.9,2614.4,0.95676]
[1729617202146,0.38265,2614.8,2614.7,0.38265]
[1729617202348,7.97404,2614.9,2614.5,0.38269]
[1729617202548,0.38264,2614.8,2614.7,0.38265]
[1729617203755,7.5914,2614.9,2614.4,0.95676]
[1729617204051,7.97404,2614.9,2614.8,0.38264]
[1729617204549,0.38265,2614.8,2614.7,0.38265]
[1729617204744,7.5914,2614.9,2614.4,0.95676]
[1729617204944,7.97404,2614.9,2614.8,0.38264]
[1729617206546,4.76624,2614.9,2614.8,0.38264]
[1729617206753,7.97404,2614.9,2614.8,0.38264]
[1729617207053,1.3936,2614.9,2614.8,0.38264]
[1729617207357,1.3699,2615.0,2614.9,0.38263]
[1729617210662,0.38263,2614.9,2614.7,1.3315]
[1729617210856,3.37263,2614.9,2614.8,0.38264]
[1729617211165,1.3699,2615.0,2614.9,0.38263]
[1729617212955,1.3385,2615.2,2615.1,0.3826]
[1729617213256,0.38264,2614.8,2614.7,0.99563819]
[1729617213561,2.99,2614.8,2614.4,2.5758]
[1729617213865,0.38268,2614.6,2614.4,2.9585]
[1729617214258,2.5806,2614.7,2614.4,2.5758]
[1729617214459,2.96326,2614.7,2614.5,0.38268]
[1729617214662,2.5806,2614.7,2614.4,1.2868]
[1729617214853,2.96327,2614.7,2614.4,1.2868]
[1729617215165,2.96326,2614.7,2614.5,0.38268]
[1729617215359,2.96326,2614.7,2614.4,1.2868]
[1729617215664,2.96326,2614.7,2614.5,0.38269]
[1729617218263,1.38,2614.6,2614.5,1.38]
[1729617218454,1.38,2614.6,2614.5,1.76269]
[1729617219061,3.9606,2614.7,2614.5,1.38]
[1729617219261,2.5806,2614.7,2614.6,1.76267]
[1729617219660,1.2741,2614.7,2614.6,1.76267]
[1729617219961,1.3052,2615.1,2614.6,1.76267]
[1729617219962,3.2078,2615.3,2614.6,8.4126]
[1729617220165,2.585,2615.2,2615.1,1.38]
[1729617220464,2.96759,2615.2,2615.1,1.38]
[1729617220669,2.96759,2615.2,2615.0,1.76261]
[1729617221671,1.38,2615.1,2615.0,1.76261]
[1729617222260,1.58759,2615.2,2615.0,0.38261]
[1729617223767,1.205,2615.2,2615.1,0.3826]
[1729617223961,1.58759,2615.2,2615.0,0.3826]
[1729617224166,1.58759,2615.2,2615.1,0.3826]
[1729617224167,1.205,2615.2,2615.1,0.3826]
[1729617224866,1.3107,2615.3,2615.2,0.38259]
[1729617225372,1.58325,2615.5,2615.2,0.38259]
[1729617225567,0.38256,2615.4,2615.2,0.38259]
[1729617225767,0.38256,2615.4,2615.2,1.59669]
[1729617228069,2.4463,2615.5,2615.2,1.59669]
[1729617228571,0.38256,2615.4,2615.2,1.59669]
[1729617231373,2.82885,2615.5,2615.3,0.38257]
[1729617231570,0.38264,2614.9,2614.7,0.38265]
[1729617231771,0.38264,2614.9,2614.6,0.38267]
[1729617231772,0.38265,2614.8,2614.6,0.38267]
[1729617231975,2.97995,2614.8,2614.5,1.67437]
[1729617232273,2.97995,2614.8,2614.6,0.38267]
[1729617232872,2.5973,2614.8,2614.7,0.38266]
[1729617233176,2.5973,2614.8,2614.5,1.2917]
[1729617233374,2.97995,2614.8,2614.6,0.38267]
[1729617235977,3.2078,2615.0,2614.6,0.95667]
[1729617236174,3.2078,2615.0,2614.5,7.4895]
[1729617236476,3.2078,2615.0,2614.9,0.38263]
[1729617240078,2.5115,2615.1,2615.0,0.38261]
[1729617240678,3.2078,2615.5,2615.0,4.78054]
[1729617240879,1.2126,2615.3,2615.2,0.38257]
[1729617242585,1.59518,2615.3,2615.1,0.38259]
[1729617242785,1.2126,2615.3,2614.9,3.6438]
[1729617243078,1.2126,2615.3,2615.2,0.38259]
[1729617243486,1.59517,2615.3,2615.2,0.38259]
[1729617243682,1.2126,2615.3,2615.2,0.38259]
[1729617244586,1.2126,2615.3,2614.9,1.2306]
[1729617244792,1.59518,2615.3,2615.1,0.3826]
[1729617245086,1.59518,2615.3,2615.2,0.38259]
[1729617245683,1.2126,2615.3,2615.2,0.38259]
[1729617246178,1.59517,2615.3,2615.2,0.38259]
[1729617246478,2.97517,2615.3,2615.2,0.38259]
[1729617246984,2.5926,2615.3,2615.2,0.38259]
[1729617248582,1.2126,2615.3,2615.2,1.76259]
[1729617248786,2.5926,2615.3,2615.2,1.76259]
[1729617252988,1.2126,2615.3,2615.2,1.76259]
[1729617253692,2.5926,2615.3,2615.2,1.76259]
[1729617254296,1.2126,2615.3,2615.2,1.76259]
[1729617254796,1.1885,2615.4,2615.3,0.38257]
[1729617254995,1.1885,2615.4,2615.3,1.76257]
[1729617255189,4.5176,2615.5,2615.4,0.38256]
[1729617255391,3.2078,2616.5,2615.4,6.5832]
[1729617255593,1.2114,2616.2,2615.8,0.95625]
[1729617255792,1.2114,2616.2,2616.1,1.76245]
[1729617256595,1.3098,2616.4,2616.3,0.38242]
[1729617256800,1.38,2616.7,2616.3,2.76]
[1729617256998,2.5674,2616.7,2616.6,1.76238]
[1729617257601,3.2078,2616.8,2616.7,0.38237]
[1729617257796,4.9701,2617.2,2616.7,1.38]
[1729617258098,4.97009,2617.2,2617.1,1.38]
[1729617258305,3.2078,2617.2,2617.0,0.38232]
[1729617258510,3.2078,2617.5,2616.9,1.267]
[1729617258716,0.38227,2617.4,2616.9,1.267]
[1729617258911,3.59006,2617.5,2617.2,0.38229]
[1729617259111,3.59006,2617.5,2617.3,0.38228]
[1729617259305,3.2078,2617.5,2616.9,1.267]
[1729617259509,0.38227,2617.4,2616.9,1.267]
[1729617259809,0.38227,2617.4,2617.2,0.38229]
[1729617260017,3.59006,2617.5,2617.2,0.38229]
[1729617260206,7.41086,2617.5,2617.2,0.38229]
[1729617260409,3.2078,2617.5,2617.2,0.38229]
[1729617260810,3.59006,2617.5,2617.2,0.38229]
[1729617261016,7.41086,2617.5,2617.2,0.38229]
[1729617261819,3.2078,2617.5,2617.3,0.38227]
[1729617262116,3.2078,2617.5,2616.9,2.22283]
[1729617262117,7.0286,2617.5,2616.9,2.22283]
[1729617262318,3.2078,2617.5,2617.1,2.98]
[1729617262619,3.2078,2617.5,2617.4,0.38226]
[1729617262918,3.2078,2617.5,2617.1,2.98]
[1729617263808,3.59006,2617.5,2617.3,0.38227]
[1729617264014,0.38227,2617.4,2617.2,0.38228]
[1729617264214,0.38227,2617.4,2616.9,2.5633]
[1729617264413,3.2078,2617.5,2617.1,0.3823]
[1729617264607,0.38228,2617.3,2617.1,0.3823]
[1729617265019,0.38228,2617.4,2617.1,0.3823]
[1729617265418,3.2078,2617.5,2617.1,0.3823]
[1729617265619,0.38228,2617.4,2617.1,0.3823]
[1729617266014,0.38228,2617.3,2617.1,0.3823]
[1729617266216,0.38227,2617.4,2617.1,0.38229]
[1729617266718,0.38228,2617.3,2617.1,0.38229]
[1729617267724,3.2078,2617.5,2617.0,1.64831]
[1729617268022,0.38227,2617.4,2617.1,0.3823]
[1729617268922,0.38227,2617.4,2617.2,0.38229]
[1729617269123,0.38227,2617.4,2616.9,1.266]
[1729617269124,0.38227,2617.4,2617.1,0.3823]
[1729617269514,0.38227,2617.4,2616.9,1.266]
[1729617269724,0.38227,2617.4,2617.2,0.38228]
[1729617269725,0.38226,2617.4,2617.2,0.38228]
[1729617269916,0.38226,2617.4,2617.1,0.3823]
[1729617270112,0.38226,2617.4,2616.9,1.266]
[1729617270316,0.38226,2617.4,2617.1,0.3823]
[1729617270515,0.38229,2617.3,2617.0,0.38231]
[1729617270718,0.38229,2617.3,2616.9,1.266]
[1729617270912,0.38229,2617.3,2617.0,0.38231]
[1729617271317,0.38229,2617.3,2617.1,0.3823]
[1729617271517,2.98,2617.6,2617.1,0.3823]
[1729617271724,3.2078,2617.5,2616.9,1.266]
[1729617272025,0.38228,2617.3,2617.0,0.38231]
[1729617272322,0.38228,2617.3,2617.1,0.3823]
[1729617272518,3.2078,2617.5,2616.9,1.266]
[1729617272911,0.38228,2617.3,2617.0,0.38232]
[1729617273324,1.1895,2617.2,2617.1,0.38231]
[1729617273522,1.1895,2617.2,2616.9,1.266]
[1729617273721,1.1895,2617.2,2617.0,0.38231]
[1729617274125,1.5718,2617.2,2617.0,0.38232]
[1729617274324,2.8235,2617.2,2617.0,0.38232]
[1729617275120,2.4412,2617.2,2617.0,0.38232]
[1729617275532,2.82349,2617.2,2617.0,0.38232]
[1729617276819,0.38227,2617.4,2617.2,0.38229]
[1729617277017,1.2082,2617.5,2617.2,0.38229]
[1729617277223,1.59046,2617.5,2617.2,0.38229]
[1729617277424,1.2082,2617.5,2617.2,1.62939]
[1729617277624,1.59045,2617.5,2617.3,0.38227]
[1729617278023,1.2082,2617.5,2617.3,0.38227]
[1729617278218,1.2082,2617.5,2617.3,2.98]
[1729617278427,1.2657,2617.6,2617.3,2.98]
[1729617278618,1.2657,2617.6,2617.3,6.1878]
[1729617278828,0.38226,2617.5,2617.3,3.36228]
[1729617279928,1.64795,2617.6,2617.4,0.38226]
[1729617280234,0.38226,2617.5,2617.3,0.38227]
[1729617280431,1.2657,2617.6,2617.0,1.2278]
[1729617280632,1.2657,2617.6,2617.4,0.38226]
[1729617280633,1.64794,2617.6,2617.4,0.38226]
[1729617280825,1.64794,2617.6,2617.3,0.38227]
[1729617280826,0.38226,2617.5,2617.3,0.38227]
[1729617281526,1.64795,2617.6,2617.3,0.38227]
[1729617281831,1.2657,2617.6,2617.3,0.38227]
[1729617282036,1.2657,2617.6,2617.3,0.38228]
[1729617282330,0.38225,2617.5,2617.3,0.38228]
[1729617283734,1.2657,2617.6,2617.2,0.38229]
[1729617283735,0.38227,2617.4,2617.2,0.38229]
[1729617284127,0.38225,2617.5,2617.3,0.38227]
[1729617284336,1.76225,2617.5,2617.4,1.38]
[1729617286931,1.76225,2617.5,2616.9,4.6118]
[1729617286932,0.38231,2617.1,2616.8,0.38234]
[1729617287232,0.38234,2616.9,2616.7,0.38237]
[1729617287631,3.9143,2617.0,2616.6,5.1515]
[1729617287830,3.9143,2617.0,2616.6,5.53387]
[1729617288029,4.29662,2617.0,2616.9,1.38]
[1729617288234,0.38234,2616.9,2616.8,1.38]
[1729617288433,1.38,2616.9,2616.3,2.4467]
[1729617288637,1.76237,2616.7,2616.6,1.38]
[1729617290434,0.38239,2616.6,2616.3,5.81912]
[1729617290641,0.95589,2616.8,2616.3,5.81912]
[1729617290833,0.3824,2616.5,2616.3,5.81912]
[1729617291136,0.38239,2616.6,2616.3,5.81912]
[1729617291738,0.38239,2616.6,2616.3,5.4367]
[1729617291948,0.38239,2616.6,2616.3,5.81911]
[1729617293141,4.4162,2616.9,2616.3,5.4367]
[1729617293340,0.38237,2616.7,2616.4,0.3824]